Cogmind - Beta 15 @@@ ROGUE MODE // 2025.06.04 @ 10:21:57 Player: 7604 Result: Destroyed by S-27 Virus with Autogun Performance ------------- Evolutions (5) 2500 Regions Visited (5) 1000 Robots Destroyed (74) 370 Value Destroyed (2028) 2028 Prototype IDs (8) 160 Alien Tech Used (0) 0 Bonus (2800) 2800 TOTAL SCORE: 8858 Bonus ------- Delivered SUBCON Basin 2000 Registered with UFD 300 Met Optimus in HQ 500 Cogmind --------- Core Integrity 0/1000 Matter 300/300 Energy 64/100 System Corruption 3% Temperature Cool (0) Movement Hovering (160) Ox2 Location -5/Factory Parts ------- > --- POWER (1) -------- (None) > --- PROPULSION (6) --- Improved Gravmag System > --- UTILITY (8) ------ Large Storage Unit Enhanced Optical Array Experimental Terrain Scan Processor Melee Analysis Suite Improved Target Analyzer Microactuators Tech Extrapolator > --- WEAPON (2) ------- (None) > --- INVENTORY (15) --- Light Angular Momentum Engine Improved Terrain Scanner Transmission Jammer Gun Armor A0-MCA's Component Scanner Drone Bay (2/2) Riot Gun Tesla Rifle Heavy Plasma Cannon Heavy Plasma Cannon KE Penetrator Force Lance DRS Beacon (Ready) Peak State ------------ > --- POWER ------------ Light Fission Core > --- PROPULSION ------- Gravmag System Gravmag System Gravmag System Gravmag System Antigrav System > --- UTILITY ---------- Large Storage Unit Advanced Sensor Array Improved Terrain Scanner Experimental Terrain Scan Processor Core Analyzer Improved Reaction Control System Makeshift Hacking Suite Advanced System Shield > --- WEAPON ----------- Tesla Rifle Heavy Pick > --- INVENTORY -------- Light Fission Core Structural Scanner Transmission Jammer Gun Armor Shield Generator A0-MCA's Component Scanner Tech Extrapolator Riot Gun Tesla Rifle Heavy Plasma Cannon Heavy Plasma Cannon Coil Gun Grenade Launcher Mini Grenade Launcher DRS Beacon [Rating: 80] Favorites ----------- Power Subdweller Power Source Engine Subdweller Power Source Power Core Light Fission Core Propulsion Subdweller Monowheel Treads Light Treads Leg Improved Aluminum Leg Wheel Subdweller Monowheel Hover Unit Gravmag System Utility Huge Storage Unit Device Sensor Array Storage Huge Storage Unit Processor Experimental Terrain Scan Processor Hackware Advanced System Shield Protection Improved Medium Armor Plating Weapon Subdweller Laser Energy Gun Subdweller Laser Ballistic Gun Assault Rifle Launcher Grenade Launcher Piercing Weapon Force Lance Build | -11 -10 -10 -7 -7 -5 ------- Run | Yrd Mat Sub Rec Scr Fac Slots Evolved 10 | . . . . . 10 Power . | . . . . . . Propulsion 4 | . . . . . 4 Utility 6 | . . . . . 6 Weapon . | . . . . . . Parts Attached 85 | . 11 18 . 9 47 Power 12 | . 1 4 . 1 6 Engine 8 | . 1 4 . . 3 Core 4 | . . . . 1 3 Reactor . | . . . . . . Propulsion 31 | . 2 5 . 5 19 Treads 6 | . 2 1 . 1 2 Leg 4 | . . . . 2 2 Wheel 13 | . . 4 . . 9 Hover 8 | . . . . 2 6 Flight . | . . . . . . Utility 27 | . 6 3 . 1 17 Device 13 | . 3 2 . . 8 Storage 4 | . 3 . . 1 . Processor 6 | . . . . . 6 Hackware 2 | . . . . . 2 Protection 2 | . . 1 . . 1 Artifact . | . . . . . . Weapon 15 | . 2 6 . 2 5 Energy Gun 7 | . 1 5 . . 1 Energy Cannon . | . . . . . . Ballistic Gun 3 | . . 1 . 1 1 Ballistic Cannon . | . . . . . . Launcher 2 | . 1 . . . 1 Special Weapon . | . . . . . . Impact Weapon . | . . . . . . Slashing Weapon . | . . . . . . Piercing Weapon 3 | . . . . 1 2 Special Melee Weapon . | . . . . . . Unidentified Prototypes 2 | . . . . . 2 Parts Lost 37 | . . 3 . . 34 Power 3 | . . . . . 3 Propulsion 20 | . . 2 . . 18 Utility 9 | . . 1 . . 8 Weapon 5 | . . . . . 5 Highest Loss Streak 11 | . . 2 . . 11 To Critical Strikes 1 | . . . . . 1 Average Backups 12 | 7 10 9 11 19 13 Power . | 1 1 1 . . . Propulsion 1 | 4 . . 1 5 . Utility 5 | 1 3 3 4 8 5 Weapon 4 | 1 5 4 5 4 6 Tool/Special . | . . . . . . Unused Backups 31 | 6 5 8 . 4 8 Power 5 | 1 . 4 . . . Propulsion 7 | 2 4 . . 1 . Utility 8 | 1 1 1 . 2 3 Weapon 11 | 2 . 3 . 1 5 Tool/Special . | . . . . . . Average Slot Usage (%) 97 | . 100 97 100 100 85 Engine 10 | . 14 14 14 7 2 Core 1 | . . . . 6 2 Treads 10 | . 27 13 . . 4 Leg 2 | . . . . 7 3 Wheel 11 | . . 12 28 14 6 Hover 2 | . . . . 5 9 Device 13 | . 14 13 14 14 12 Storage 12 | . 14 14 14 14 5 Processor 1 | . . . . . 11 Hackware 1 | . . . . . 9 Energy Gun 16 | . 13 25 27 7 1 Ballistic Gun 8 | . 14 2 . 18 2 Piercing Weapon 1 | . . . . 2 5 Peak Build Rating 80 | 7 10 35 34 34 80 Average Rating 27 | 6 8 28 19 26 64 On Entrance 17 | 6 7 9 34 17 31 Naked Turns . | . . . . . . Heaviest Build 97 | 14 90 97 94 97 54 Greatest Support 58 | 20 40 40 20 33 58 Greatest Overweight (x) 10 | . 2 4 4 4 10 Average Overweight (x) 2 | . . 2 4 2 . Largest Inventory Capacity 25 | 8 25 25 25 25 15 Average Capacity 21 | 8 18 25 25 22 15 Most Carried 25 | 8 16 25 25 25 15 Average Carried 19 | 7 10 24 15 21 14 Final Capacity 25 | 8 25 25 25 15 15 Final Carried 25 | 8 16 25 15 15 13 Class Distribution -------------------- 65% | Mutant 16% | Derelict-Mutant 6% | Scavenger-Mutant 4% | Hacker-Mutant 3% | Scavenger-Assassin Dominant Class ---------------- Mutant | -10/Materials Mutant | -10/Subcaves Derelict-Mutant | -7/Recycling Mutant | -7/Scraptown Hacker-Mutant | -5/Factory Resources | -11 -10 -10 -7 -7 -5 ----------- Run | Yrd Mat Sub Rec Scr Fac Matter Collected 1884 | 272 272 475 . 149 716 Remotely . | . . . . . . Salvage Created 2938 | 270 406 514 . . 1748 Parts 158 | 19 31 28 . . 80 Haulers Intercepted 1 | . 1 . . . . Recyclers Shooed 1 | . 1 . . . . Parts Field Recycled . | . . . . . . Retrieved Matter . | . . . . . . Parts Self-Destructed 10 | . . 10 . . . Prevented . | . . . . . . Kills | -11 -10 -10 -7 -7 -5 ------- Run | Yrd Mat Sub Rec Scr Fac Combat Hostiles Destroyed 44 | . 10 12 . . 22 Melee 16 | . . . . . 16 Guns 17 | . 7 9 . . 1 AOE 11 | . 3 3 . . 5 Classes Destroyed 12 | 2 6 2 . . 2 Worker 4 | . 1 . . . 3 Builder 7 | . 2 . . . 5 Tunneler 12 | 9 1 . . . 2 Hauler 1 | . 1 . . . . Recycler 5 | 1 . . . . 4 Watcher 1 | . 1 . . . . Swarmer 7 | . 3 1 . . 3 Grunt 24 | . 7 2 . . 15 Sentry 2 | . . . . . 2 Programmer 2 | . . . . . 2 Artisan 3 | . . 3 . . . Subdweller 9 | . . 9 . . . Best Kill Streak 9 | 3 4 3 . . 9 Combat Bots Only 7 | . 3 3 . . 7 Max Kills in Single Turn 4 | 1 3 2 . . 4 Gunslinging . | . . . . . . Exploded 2 | . 2 2 . . 2 Melee 1 | . . . . . 1 Uniques/NPCs Destroyed . | . . . . . . Combat | -11 -10 -10 -7 -7 -5 -------- Run | Yrd Mat Sub Rec Scr Fac Hostile Shots Fired 276 | . 29 49 . . 198 Missed 75 | . 7 15 . . 53 Hits 201 | . 22 34 . . 145 Melee 1 | . . . . . 1 Projectile 200 | . 22 34 . . 144 AOE 3 | . . . . . 3 Critical Strikes 8 | . . . . . 8 Damage Taken 4201 | . 277 656 . . 3268 Core 1235 | . 36 188 . . 1011 Absorbed by Shields 42 | . . . . . 42 Ignored by Resistances 11 | . . 11 . . . Core Remaining (%) 55 | 100 . . . 10 . Volleys Fired 210 | 24 40 123 . . 23 Largest 2 | 2 2 2 . . 1 Hottest 120 | 70 70 120 . . 65 Shots Fired 313 | 48 75 167 . . 23 Gun 297 | 48 70 161 . . 18 Cannon . | . . . . . . Launcher 16 | . 5 6 . . 5 Special . | . . . . . . Kinetic 115 | 24 35 39 . . 17 Thermal 181 | 24 35 122 . . . Explosive 16 | . 5 6 . . 5 Electromagnetic 1 | . . . . . 1 Robot Hit Streak 12 | 11 12 12 . . 6 Robot Miss Streak 6 | 4 6 5 . . 1 Penetration Max 1 | . . . . . 1 Secondary Targets . | . . . . . . Shots Hit Robots 220 | 32 47 67 . . 74 Core Hits 112 | 11 25 27 . . 49 Critical Kills 1 | . . 1 . . . Critical Parts Destroyed . | . . . . . . Critical Strikes 24 | 3 4 4 . . 13 Burn 9 | 3 4 2 . . . Destroy 2 | . . 2 . . . Impale 13 | . . . . . 13 Melee Attacks 87 | . . . . . 87 Impact . | . . . . . . Slashing . | . . . . . . Piercing 87 | . . . . . 87 Sneak Attacks 11 | . . . . . 11 Combat Hostiles . | . . . . . . Follow-up Attacks 4 | . . . . . 4 Damage Inflicted 6911 | 410 783 1388 . . 4330 Guns 2340 | 404 581 1061 . . 294 Cannons . | . . . . . . Explosions 1524 | . 178 327 . . 1019 Melee 3017 | . . . . . 3017 Ramming 30 | 6 24 . . . . Kinetic 797 | 167 309 27 . . 294 Thermal 1795 | 237 272 1034 . . 252 Explosive 1272 | . 178 327 . . 767 Electromagnetic . | . . . . . . Impact . | . . . . . . Slashing . | . . . . . . Piercing 3017 | . . . . . 3017 Highest Corruption 3 | . . . . . 3 Average Corruption 1 | . . . . . 1 Corruption Purged . | . . . . . . Corruption Blocked . | . . . . . . Effects 7 | . . . . . 7 Matter Fused 3 | . . . . . 3 Heat Flow Errors 2 | . . . . . 2 Energy Discharges 1 | . . . . . 1 Data Loss (minor) 1 | . . . . . 1 Overload Shots . | . . . . . . Overflow Damage 320 | . 7 . . . 313 Projectiles . | . . . . . . Explosions 98 | . 7 . . . 91 Melee 222 | . . . . . 222 Knockbacks . | . . . . . . Impact . | . . . . . . Kinetic . | . . . . . . Secondary . | . . . . . . Self-Inflicted Damage 116 | . 12 19 . . 85 Shots 5 | . 1 2 . . 2 Rammed 4 | . 4 . . . . Targets Rammed 7 | 2 5 . . . . Kicked 2 | 2 . . . . . Crushed 1 | . 1 . . . . Highest Temperature 229 | 54 90 9 . . 229 Average Temperature 25 | 18 22 3 . . 80 Received Heat Transfer 1023 | . 132 120 . . 771 Siege Activations . | . . . . . . Martial Activations . | . . . . . . Shielding Activations . | . . . . . . Robots Disrupted . | . . . . . . Combat Hostiles . | . . . . . . Robots Corrupted . | . . . . . . Combat Hostiles . | . . . . . . Parts Fried . | . . . . . . Impact Corruptions . | . . . . . . Robots Melted . | . . . . . . Combat Hostiles . | . . . . . . Parts Melted 8 | 3 2 3 . . . Heat Transferred 4220 | 925 1110 1985 . . 200 Parts Sabotaged . | . . . . . . Parts Stolen . | . . . . . . Parts Stripped . | . . . . . . Power Chain Reactions . | . . . . . . Alert | -11 -10 -10 -7 -7 -5 ------- Run | Yrd Mat Sub Rec Scr Fac Maximum Alert Level 1 | . . . . . 1 Low Security (%) 99 | 100 100 . 100 . 99 Level 1 . | . . . . . . Level 2 . | . . . . . . Level 3 . | . . . . . . Level 4 . | . . . . . . Level 5 . | . . . . . . High Security . | . . . . . . Max Security . | . . . . . . Peak Influence 201 | 10 163 . 30 . 201 Initial 22 | . . . 22 . . Average 37 | 1 40 . 4 . 60 Influence Increases 1390 | 50 381 70 46 . 843 Destroy 0b10 Robot/C 700 | . 200 60 . . 440 Destroy 0b10 Robot/NC 150 | 50 30 . . . 70 Destroy Leader 134 | . 44 10 . . 80 Successful Hack 81 | . 12 . 16 . 53 Select Force Hacks 120 | . 60 . 30 . 30 Disable Machine 15 | . . . . . 15 Destroy Structure 85 | . 35 . . . 50 Partial Spotted 15 | . . . . . 15 Lose Combat Pursuer 90 | . . . . . 90 Influence Decreases 1199 | 50 256 148 93 . 652 Entered New Map 86 | . . 61 25 . . Time Decay 832 | 50 256 87 68 . 371 Lost Part 281 | . . . . . 281 Squads Dispatched 11 | . 3 . . . 8 Investigation 6 | . 2 . . . 4 Extermination 2 | . . . . . 2 Reinforcement 3 | . 1 . . . 2 Assault . | . . . . . . Garrison . | . . . . . . Intercept . | . . . . . . Searches Triggered . | . . . . . . Construction Impeded 1 | . . . . . 1 Haulers Reinforced 1 | . . . . . 1 Active Scanning Responses . | . . . . . . Cargo Convoy Interrupts . | . . . . . . Stealth | -11 -10 -10 -7 -7 -5 --------- Run | Yrd Mat Sub Rec Scr Fac Distress Signals 1 | . 1 . . . . Communications Jammed . | . . . . . . Distress Signals . | . . . . . . Times Spotted 72 | . 14 12 . . 46 Peak Tracking Total 10 | . 3 3 . . 10 Tactical Retreats 5 | . . . . . 5 Traps | -11 -10 -10 -7 -7 -5 ------- Run | Yrd Mat Sub Rec Scr Fac Traps Triggered 3 | . . 1 . . 2 Indirectly . | . . . . . . Trap Hack Attempts . | . . . . . . Triggered . | . . . . . . Disarmed . | . . . . . . Reprogrammed . | . . . . . . Reused . | . . . . . . Traps Extracted . | . . . . . . Installed . | . . . . . . Triggered . | . . . . . . Machines | -11 -10 -10 -7 -7 -5 ---------- Run | Yrd Mat Sub Rec Scr Fac Machines Disabled 1 | . . . . . 1 Max in Single Turn 1 | . . . . . 1 Machines Repaired . | . . . . . . Machines Dismantled . | . . . . . . Machines Sabotaged . | . . . . . . Overloaded Fab Kills . | . . . . . . Hacking | -11 -10 -10 -7 -7 -5 --------- Run | Yrd Mat Sub Rec Scr Fac Machines Accessed 21 | . 4 3 4 3 7 Terminals 9 | . 2 . 2 . 5 Fabricators 1 | . . . . . 1 Repair Stations . | . . . . . . Recycling Units 5 | . 2 . 2 . 1 Scanalyzers . | . . . . . . Garrison Access . | . . . . . . Total Hacks 76 | . 15 7 9 20 25 Successful 53 | . 9 7 3 20 14 Failed 23 | . 6 . 6 . 11 Catastrophic 5 | . . . . . 5 Database Lockouts . | . . . . . . Manual 26 | . 9 . 5 . 12 Terminals 30 | . 8 . 4 . 18 Fabricators 5 | . . . . . 5 Repair Stations . | . . . . . . Recycling Units 14 | . 7 . 5 . 2 Scanalyzers . | . . . . . . Garrison Access . | . . . . . . Terminal Hacks 36 | . 1 7 1 20 7 Record 19 | . . 5 . 14 . Part Schematic 3 | . . . . . 3 Robot Schematic 1 | . . . 1 . . Robot Analysis 6 | . . . . 6 . Open Door 1 | . . 1 . . . Level Access Points 1 | . . . . . 1 Terminal Index 1 | . . . . . 1 Locate Traps 1 | . 1 . . . . Hauler Manifests 1 | . . . . . 1 Registered Components 1 | . . . . . 1 Release Object 1 | . . 1 . . . Fabricator Hacks 3 | . . . . . 3 Network Status 1 | . . . . . 1 Load Schematic 1 | . . . . . 1 Build 1 | . . . . . 1 Repair Station Hacks . | . . . . . . Recycling Unit Hacks 3 | . 2 . 1 . . Retrieve Components 3 | . 2 . 1 . . Scanalyzer . | . . . . . . Garrison Access Hacks . | . . . . . . Unauthorized Hacks 11 | . 6 . 1 . 4 Terminals 6 | . 4 . . . 2 Botnet 4 | . 2 . . . 2 Operators 1 | . 1 . . . . Skim 1 | . 1 . . . . Fabricators 1 | . . . . . 1 Prioritize 1 | . . . . . 1 Repair Stations . | . . . . . . Recycling Units 4 | . 2 . 1 . 1 Tunnel 4 | . 2 . 1 . 1 Scanalyzers . | . . . . . . Garrison Access . | . . . . . . Data Cores Recovered . | . . . . . . Used . | . . . . . . Hacking Detections 14 | . 3 . 4 . 7 Full Trace Events 3 | . . . 1 . 2 Feedback Events . | . . . . . . Feedback Blocked . | . . . . . . Robot Schematics Acquired 1 | . . . 1 . . Robots Built . | . . . . . . Authchips . | . . . . . . Time . | . . . . . . Total Robot Build Rating . | . . . . . . Part Schematics Acquired 3 | . . . . . 3 Parts Built 2 | . . . . . 2 Authchips . | . . . . . . Time 58 | . . . . . 58 Total Part Build Rating 14 | . . . . . 14 Parts Repaired . | . . . . . . Time . | . . . . . . Parts Recycled . | . . . . . . Recycled Matter . | . . . . . . Retrieved Matter . | . . . . . . Retrieved Components 21 | . 18 . 3 . . Parts Scanalyzed . | . . . . . . Part Schematics Acquired . | . . . . . . Parts Damaged . | . . . . . . Bothacking | -11 -10 -10 -7 -7 -5 ------------ Run | Yrd Mat Sub Rec Scr Fac Used RIF Installer . | . . . . . . Robots Hacked . | . . . . . . Non-combat . | . . . . . . Combat . | . . . . . . Robot Hacks Applied . | . . . . . . Relay Couplers Released . | . . . . . . Fabnet Peak Effective % . | . . . . . . Robots Rewired . | . . . . . . Allies Hacked . | . . . . . . Hacks Repelled . | . . . . . . Allies | -11 -10 -10 -7 -7 -5 -------- Run | Yrd Mat Sub Rec Scr Fac Total Allies . | . . . . . . Largest Group . | . . . . . . Highest-Rated Group . | . . . . . . Highest-Rated Ally . | . . . . . . Total Orders . | . . . . . . Ally Attacks . | . . . . . . Total Damage . | . . . . . . Kills . | . . . . . . Allies Corrupted . | . . . . . . Allies Melted . | . . . . . . Intel | -11 -10 -10 -7 -7 -5 ------- Run | Yrd Mat Sub Rec Scr Fac Active Infowar (turns) 8675 | . 1247 3691 468 2326 943 Optics 670 | . . . . . 670 Sensors 4907 | . . 1758 468 2326 355 Terrain 689 | . 60 285 . . 344 Structural 877 | . . 144 . . 733 Seismic 2691 | . 1187 1504 . . . Jamming 1 | . . . . . 1 Robot Analysis Total 6 | . . . . 6 . Derelict Logs Recovered 7 | . . 3 . 4 . Drone Launches . | . . . . . . Drone Recoveries . | . . . . . . Exploration | -11 -10 -10 -7 -7 -5 ------------- Run | Yrd Mat Sub Rec Scr Fac Turns Passed 9174 | 305 1283 3782 468 2326 1010 Spaces Moved 4486 | 100 513 1499 255 1387 732 Core 3 | . . . . . 3 Treads 1014 | . 505 491 . 1 17 Legs 342 | 100 8 . . 233 1 Wheels 2322 | . . 1008 255 802 257 Hover 805 | . . . . 351 454 Flight . | . . . . . . Fastest Speed 40 | 120 120 130 150 116 40 Average Speed 165 | 120 209 204 150 163 74 Slowest Speed 550 | 120 320 480 150 260 550 Overloaded Moves . | . . . . . . Propulsion Burnouts . | . . . . . . Robots Hopped . | . . . . . . Potential Cave-ins . | . . . . . . Cave-ins Triggered . | . . . . . . Exploration Rate (%) 46 | 4 63 57 45 89 19 Regions Visited 5 Branch Regions 3 Pre-discovered Areas 10 | . 2 4 1 2 1 Known Exits Taken . | . . . . . . Unknown Exits Taken 5 | 1 1 1 1 1 . Scrap Searched 17 | . . 14 . 3 . Spaces Dug 15 | . . 1 . . 14 Terrain Destroyed 91 | . 39 28 . . 24 Melee 11 | . . . . . 11 Projectile 3 | . . 1 . . 2 AOE 77 | . 39 27 . . 11 Terrain Rammed . | . . . . . . Walls Destroyed . | . . . . . . Machines Disabled . | . . . . . . Actions | -11 -10 -10 -7 -7 -5 --------- Run | Yrd Mat Sub Rec Scr Fac Total 5721 | 236 632 2049 341 1459 1004 Wait 691 | 109 41 355 78 24 84 Move 4482 | 100 512 1498 254 1386 732 Hop . | . . . . . . Pick Up 62 | 2 11 9 6 18 16 Fast Attach 35 | . . 8 . 3 24 Attach 25 | . 1 1 . 5 18 Detach 5 | . . 2 . 1 2 Swap 65 | . 16 31 1 3 14 Drop 60 | . 6 22 2 19 11 Fire 210 | 24 40 123 . . 23 Melee 80 | . . . . . 80 Ram . | . . . . . . Kick 1 | 1 . . . . . Crush 5 | . 5 . . . . Escape Stasis . | . . . . . . Rewire . | . . . . . . Trap . | . . . . . . Miscellaneous . | . . . . . . Route ------- -11/Scrapyard -10/Materials (discovered 4 exits: [*Mat] / [*Min x2] / *Sub) -10/Subcaves (discovered 2 exits: [*Mat] / *Rec) -7/Recycling -7/Scraptown (discovered 2 exits: *Fac x2) -5/Factory (discovered 5 exits: Fac x4 / [*Ext]) History --------- Turn | Location | Event 14 | -11/Scrapyard | Discovered new exit (range 3) 306 | -11/Scrapyard | Entered Materials 346 | -10/Materials | Build established: Mutant 388 | -10/Materials | Discovered new exit (range 15) 487 | -10/Materials | Discovered new exit (range 3) 796 | -10/Materials | Discovered new exit (range 16) 870 | -10/Materials | Discovered new exit (range 8) 1589 | -10/Materials | Entered Subcaves 1590 | -10/Subcaves | Approached by a straggling Scientist 1591 | -10/Subcaves | A swath of the cavern ceiling suddenly collapsed 1710 | -10/Subcaves | Learned location of Mines (-10) 1736 | -10/Subcaves | Found SUBCON Basin 3696 | -10/Subcaves | Discovered new exit (range 7) 3810 | -10/Subcaves | Ambushed by angry Subdweller bent on revenge 3921 | -10/Subcaves | Build established: Scavenger-Mutant 3973 | -10/Subcaves | Shifting Twisted Machinery released Flamer 4110 | -10/Subcaves | Ambushed by angry Subdweller bent on revenge 4112 | -10/Subcaves | Core integrity fell below 50% 4335 | -10/Subcaves | Learned location of Zion (-6) 4335 | -10/Subcaves | Met a Zionite searching for "candidates" 4352 | -10/Subcaves | Learned Materials emergency access door positions 4452 | -10/Subcaves | Build established: Mutant 4544 | -10/Subcaves | Visited Clippyterm 4548 | -10/Subcaves | Learned location of Section 7 (-3) 4548 | -10/Subcaves | Learned Research machine intel 4600 | -10/Subcaves | Discovered new exit (range 9) 4957 | -10/Subcaves | Core integrity fell below 20% 4997 | -10/Subcaves | A Subdweller sparked back to life 4997 | -10/Subcaves | A Subdweller sparked back to life 4997 | -10/Subcaves | A Subdweller sparked back to life 5013 | -10/Subcaves | Found Prototype Protection 5319 | -10/Subcaves | Build established: Derelict-Mutant 5371 | -10/Subcaves | Entered Recycling 5450 | -7/Recycling | Scanned before Scraplab entrance 5471 | -7/Recycling | Entered Scraplab 5837 | -7/Recycling | Discovered new exit (range 2) 5839 | -7/Recycling | Entered Scraptown 6071 | -7/Scraptown | Heard Great Nut preacher, LISTEN AND RECITE! 6077 | -7/Scraptown | Discovered new exit (range 11) 6131 | -7/Scraptown | Scanned Subdweller tech in exchange for log data 6134 | -7/Scraptown | Learned location of Quarantine (-3) 6135 | -7/Scraptown | Learned Research emergency access door positions 6137 | -7/Scraptown | Learned Factory emergency access door positions 6138 | -7/Scraptown | Learned location of Testing (-2) 6177 | -7/Scraptown | Visited Cave Peace 6198 | -7/Scraptown | Visited The Evicted 6210 | -7/Scraptown | Visited Symbiants 6257 | -7/Scraptown | Visited Cyclists 6269 | -7/Scraptown | Visited Awakened 6754 | -7/Scraptown | Build established: Mutant 6769 | -7/Scraptown | Visited Fellowship of the Rings 6793 | -7/Scraptown | Visited TADAMA 6851 | -7/Scraptown | Visited UFD Registry 6851 | -7/Scraptown | Registered with UFD as "Gunslicer" 6889 | -7/Scraptown | Visited Scrap Suit Storage 6911 | -7/Scraptown | Visited Botcube Research 6935 | -7/Scraptown | Visited Infowarlord's Domain 6944 | -7/Scraptown | Found Exp. Terrain Scan Processor 6977 | -7/Scraptown | Visited Derelict Rescue Squad 6988 | -7/Scraptown | Found DRS Beacon 7017 | -7/Scraptown | Visited Abandonware Association 7035 | -7/Scraptown | Learned abandonware demo "REPAIR.EXE" 7070 | -7/Scraptown | Visited Junk Repository 7157 | -7/Scraptown | Visited A0-MCA Data Center 7204 | -7/Scraptown | Visited Science Testing Area 7250 | -7/Scraptown | Visited Analyses Database 7432 | -7/Scraptown | Visited LU-1G1's Boring Crew 7508 | -7/Scraptown | Delivered Scrap Shield to a Scientist 7806 | -7/Scraptown | Given a B rating by A0-MCA 7814 | -7/Scraptown | Found A0-MCA's Component Scanner 7902 | -7/Scraptown | Discovered new exit (range 5) 8092 | -7/Scraptown | Met Optimus 8092 | -7/Scraptown | Accepted into 0bPrime 8165 | -7/Scraptown | Entered Factory 8165 | -5/Factory | Evolved 10 slots: Propulsion x4, Utility x6 8418 | -5/Factory | Fabricated Force Lance? 8443 | -5/Factory | Spotted B-75 Beast 8503 | -5/Factory | Lost 11 parts (1p5n3u2w) 8640 | -5/Factory | Lost 7 parts (1p4n2u) 8663 | -5/Factory | Core integrity fell below 50% 8860 | -5/Factory | Identified exit to Factory 8916 | -5/Factory | Discovered new exit (range 12) 8979 | -5/Factory | Build established: Scavenger-Assassin 9061 | -5/Factory | Door terminal overloaded 9089 | -5/Factory | Lost 3 parts (1n2u) 9171 | -5/Factory | Core integrity fell below 20% 9175 | -5/Factory | Destroyed by S-27 Virus with Autogun Last Messages --------------- 09167_ Force Lance destroyed. 09168_ K-01 Serf collects debris. 09168_ U-05 Engineer lays Concrete. 09169_ Acquired 10 matter. 09169_ K-01 Serf collects debris. 09169_ U-05 Engineer lays Concrete. 09169_ Destroyed VTOL Module. 09169_ S-27 Virus destroyed. 09169_ K-01 Serf destroyed. 09169_ Grenade Launcher destroyed. 09169_ Destroyed Grenade Launcher. 09169_ S-27 Virus destroyed. 09169_ K-01 Serf destroyed. 09170_ Acquired 5 matter. 09170_ U-05 Engineer lays Concrete. 09171_ K-01 Serf collects debris. 09171_ Adv. System Shield destroyed. 09172_ Acquired 5 matter. 09172_ U-05 Engineer builds a Wall. 09172_ U-05 Engineer lays Concrete. Map ----- +----------------------------------------------------+ | ?????????????????????????????????????????????????? | | ???????????????????????????????"?????????????????? | | ?????????????????????????? # #????????????? | | ????????????????????????? ############??????????? | | ??????????????????????#?##+############??????????? | | ????????????????????? ? #############??????? | | ???????????????????? """ ?"" ##########?#???????? | | ??????????????????? """ "Y" ##############?????? | | ?????????????????? """ ###############????? | | ?????????????????? ###############????? | | ????????????????? ] ################???? | | ?????????????????########### #################???? | | ????????????????###############################??? | | ?????????????????############## #############?? | | ????????????????############### ############??? | | ?????????????????# ######## #############?? | | ????????????????## ######## ##############? | | ???????????????### < ######## ##############? | | ????????????????## ######## #############?? | | ?????#"??? # ???## ######## ############### | | ?????# ? # ???" ""###### ##############? | | ??????""" # #### #### ## ## #####? | | ???????"" + #### %* #### #+### """ ###### | | ?????????? # #ks u + """ ###### | | ?????????? # = %![ u # # """ ###### | | ????????#### *%g*!@= # ###### | | s ! =%s + """ #####? | | s s ss =#[ ! ### """ ###### | | sss # # ### """ ####?# | | ??######/######+####### !%| = # ### ###### | | ???????????? # *!=[%= # ### """ ###### | | ??????????? """ ### ##+##### ### """ ###### | | ?????????????""""" #######!##### #/ """ ###### | | ?????????????""""" #######%=* + ###### | | ??????????? ? #######+#### # * """ # | | ???????????? ? ## [ [ # # """ # | | ????????????? ## [= # # """ # !![ | | ???????????? ## # # # !=[ | | ?????????????######### # #####+### ![ | | ????????????#################### #### ### | | ????????????? # """ | | ?????????????################### + """ | | ??????????????############### "" """ """ # """ | | ??????????????####### ###""" """ """ # | | ??????????????? ###"T """ """ # """ | | ???????????